[Event "Titled Tuesday Blitz May 23 Early 2023"]
[White "Thiel, Thomas"]
[Black "Khamdamova, Afruza"]
[WhiteFideId "4615964"]
[BlackFideId "14210444"]
[WhiteElo "2244"]
[BlackElo "2312"]
[Result "0-1"]
[Round "09"]
[TimeControl "180+2"]
[Date "2023.05.23"]
[WhiteClock "0:00:00"]
[BlackClock "0:00:07"]

1. e4 {[%clk 0:02:56]}  c6 {[%clk 0:02:58]} 2. d4 {[%clk 0:02:51]}  d5 {[%clk 0:02:58]} 3. exd5 {[%clk 0:02:52]}  cxd5 {[%clk 0:02:58]} 4. c4 {[%clk 0:02:52]}  e6 {[%clk 0:02:56]} 5. Nc3 {[%clk 0:02:52]}  Nf6 {[%clk 0:02:56]} 6. Nf3 {[%clk 0:02:51]}  Be7 {[%clk 0:02:55]} 7. cxd5 {[%clk 0:02:51]}  Nxd5 {[%clk 0:02:54]} 8. Bd3 {[%clk 0:02:51]}  O-O {[%clk 0:02:53]} 9. O-O {[%clk 0:02:51]}  b6 {[%clk 0:02:53]} 10. Nxd5 {[%clk 0:02:45]}  Qxd5 {[%clk 0:02:52]} 11. Re1 {[%clk 0:02:45]}  Bb7 {[%clk 0:02:49]} 12. Be4 {[%clk 0:02:44]}  Qd7 {[%clk 0:02:50]} 13. Ne5 {[%clk 0:02:44]}  Qc8 {[%clk 0:02:47]} 14. Bd3 {[%clk 0:02:20]}  Nd7 {[%clk 0:02:38]} 15. Bf4 {[%clk 0:02:19]}  Nf6 {[%clk 0:02:33]} 16. Rc1 {[%clk 0:02:14]}  Qd8 {[%clk 0:02:23]} 17. Nc6 {[%clk 0:02:12]}  Bxc6 {[%clk 0:02:18]} 18. Rxc6 {[%clk 0:02:11]}  Nd5 {[%clk 0:02:16]} 19. Bg3 {[%clk 0:01:45]}  Nb4 {[%clk 0:02:15]} 20. Rc7 {[%clk 0:01:30]}  Nxd3 {[%clk 0:02:12]} 21. Qxd3 {[%clk 0:01:31]}  Bf6 {[%clk 0:02:12]} 22. Rd1 {[%clk 0:01:28]}  Qd5 {[%clk 0:02:10]} 23. b3 {[%clk 0:01:24]}  Rfd8 {[%clk 0:02:10]} 24. Qc4 {[%clk 0:01:22]}  Bxd4 {[%clk 0:02:04]} 25. Qxd5 {[%clk 0:01:20]}  Rxd5 {[%clk 0:02:03]} 26. Kf1 {[%clk 0:01:19]}  b5 {[%clk 0:01:55]} 27. Ke2 {[%clk 0:01:16]}  Rad8 {[%clk 0:01:54]} 28. Rdc1 {[%clk 0:01:05]}  Bb6 {[%clk 0:01:46]} 29. Rc8 {[%clk 0:01:03]}  g5 {[%clk 0:01:31]} 30. Rxd8+ {[%clk 0:01:00]}  Bxd8 {[%clk 0:01:23]} 31. Rc2 {[%clk 0:01:00]}  f5 {[%clk 0:01:20]} 32. f3 {[%clk 0:01:00]}  Kf7 {[%clk 0:01:15]} 33. Rd2 {[%clk 0:00:54]}  Rxd2+ {[%clk 0:01:09]} 34. Kxd2 {[%clk 0:00:55]}  Ba5+ {[%clk 0:01:06]} 35. Kd3 {[%clk 0:00:55]}  Kf6 {[%clk 0:01:07]} 36. Bb8 {[%clk 0:00:46]}  a6 {[%clk 0:01:07]} 37. g4 {[%clk 0:00:44]}  e5 {[%clk 0:01:01]} 38. h3 {[%clk 0:00:39]}  Bb6 {[%clk 0:00:55]} 39. Bd6 {[%clk 0:00:33]}  Bd4 {[%clk 0:00:51]} 40. Bc7 {[%clk 0:00:29]}  Ke6 {[%clk 0:00:50]} 41. Bd8 {[%clk 0:00:28]}  h6 {[%clk 0:00:49]} 42. Ba5 {[%clk 0:00:21]}  Bb2 {[%clk 0:00:48]} 43. Bb4 {[%clk 0:00:15]}  fxg4 {[%clk 0:00:48]} 44. hxg4 {[%clk 0:00:11]}  Kf6 {[%clk 0:00:23]} 45. Kd2 {[%clk 0:00:12]}  Kg6 {[%clk 0:00:23]} 46. Kd3 {[%clk 0:00:13]}  h5 {[%clk 0:00:22]} 47. Ke4 {[%clk 0:00:14]}  hxg4 {[%clk 0:00:22]} 48. fxg4 {[%clk 0:00:12]}  Kf6 {[%clk 0:00:21]} 49. Bd2 {[%clk 0:00:11]}  Bd4 {[%clk 0:00:20]} 50. Bc1 {[%clk 0:00:11]}  a5 {[%clk 0:00:19]} 51. Bd2 {[%clk 0:00:11]}  a4 {[%clk 0:00:19]} 52. bxa4 {[%clk 0:00:11]}  bxa4 {[%clk 0:00:20]} 53. Bc1 {[%clk 0:00:11]}  Bc5 {[%clk 0:00:19]} 54. Bb2 {[%clk 0:00:10]}  Bd6 {[%clk 0:00:14]} 55. Bc3 {[%clk 0:00:10]}  Ke6 {[%clk 0:00:14]} 56. Bb2 {[%clk 0:00:09]}  Bc7 {[%clk 0:00:15]} 57. Bc3 {[%clk 0:00:09]}  Bd6 {[%clk 0:00:13]} 58. Bb2 {[%clk 0:00:08]}  a3 {[%clk 0:00:14]} 59. Bc3 {[%clk 0:00:08]}  Kf6 {[%clk 0:00:09]} 60. Ba1 {[%clk 0:00:07]}  Ke6 {[%clk 0:00:07]} 61. Bc3 {[%clk 0:00:07]}  Bc7 {[%clk 0:00:07]} 62. Bd2 {[%clk 0:00:03]}  Bb6 {[%clk 0:00:06]} 63. Bxg5 {[%clk 0:00:02]}  Bd4 {[%clk 0:00:05]} 64. Bh6 {[%clk 0:00:02]}  Kf6 {[%clk 0:00:05]} 65. g5+ {[%clk 0:00:02]}  Kg6 {[%clk 0:00:06]} 66. Bf8 {[%clk 0:00:02]}  Kxg5 {[%clk 0:00:06]} 67. Bxa3 {[%clk 0:00:02]}  Kf6 {[%clk 0:00:06]} 68. Bd6 {[%clk 0:00:00]}  Ke6 {[%clk 0:00:07]} 0-1


[Site "https://www.chess.com"]

[Event "Titled Tuesday Blitz May 23 Early 2023"]
[White "Osinovsky, Stepan"]
[Black "Cardozo Munar, Carlos Eduardo"]
[WhiteFideId "4157354"]
[BlackFideId "4409477"]
[WhiteElo "2222"]
[BlackElo "2067"]
[Result "1-0"]
[Round "09"]
[TimeControl "180+2"]
[Date "2023.05.23"]
[WhiteClock "0:00:56"]
[BlackClock "0:00:00"]

1. e4 {[%clk 0:03:00]}  e6 {[%clk 0:02:43]} 2. d3 {[%clk 0:02:58]}  d5 {[%clk 0:02:40]} 3. Nd2 {[%clk 0:02:59]}  Nf6 {[%clk 0:02:36]} 4. Ngf3 {[%clk 0:02:58]}  c5 {[%clk 0:02:36]} 5. g3 {[%clk 0:02:58]}  Nc6 {[%clk 0:02:36]} 6. Bg2 {[%clk 0:02:58]}  Be7 {[%clk 0:02:32]} 7. O-O {[%clk 0:02:58]}  b5 {[%clk 0:02:31]} 8. Re1 {[%clk 0:02:55]}  a5 {[%clk 0:02:30]} 9. exd5 {[%clk 0:02:46]}  Nxd5 {[%clk 0:02:30]} 10. c4 {[%clk 0:02:45]}  bxc4 {[%clk 0:02:31]} 11. dxc4 {[%clk 0:02:26]}  Ndb4 {[%clk 0:02:26]} 12. Ne5 {[%clk 0:02:18]}  Ra6 {[%clk 0:02:23]} 13. Qa4 {[%clk 0:01:58]}  O-O {[%clk 0:02:04]} 14. Nxc6 {[%clk 0:01:54]}  Rxc6 {[%clk 0:01:32]} 15. Bxc6 {[%clk 0:01:50]}  Qd3 {[%clk 0:01:09]} 16. Be4 {[%clk 0:01:42]}  Qd4 {[%clk 0:01:04]} 17. Nf3 {[%clk 0:01:29]}  Qxc4 {[%clk 0:01:00]} 18. a3 {[%clk 0:01:28]}  f5 {[%clk 0:00:46]} 19. Bb1 {[%clk 0:01:14]}  Bb7 {[%clk 0:00:42]} 20. axb4 {[%clk 0:00:59]}  Bxf3 {[%clk 0:00:00]} 21. bxa5 {[%clk 0:00:56]} 1-0


[Site "https://www.chess.com"]

[Event "Titled Tuesday Blitz May 23 Early 2023"]
[White "Jiganchine, Roman"]
[Black "Acikel, Mert"]
[WhiteFideId "2603667"]
[BlackFideId "12956465"]
[WhiteElo "2297"]
[BlackElo "2097"]
[Result "1/2-1/2"]
[Round "09"]
[TimeControl "180+2"]
[Date "2023.05.23"]
[WhiteClock "0:00:08"]
[BlackClock "0:00:16"]

1. e4 {[%clk 0:03:00]}  e5 {[%clk 0:02:59]} 2. Nf3 {[%clk 0:02:56]}  Nc6 {[%clk 0:02:59]} 3. Nc3 {[%clk 0:02:51]}  Nf6 {[%clk 0:02:59]} 4. Bb5 {[%clk 0:02:50]}  Bb4 {[%clk 0:02:55]} 5. O-O {[%clk 0:02:47]}  O-O {[%clk 0:02:52]} 6. Bxc6 {[%clk 0:02:47]}  dxc6 {[%clk 0:02:49]} 7. d3 {[%clk 0:02:46]}  Re8 {[%clk 0:02:32]} 8. Ne2 {[%clk 0:02:44]}  h6 {[%clk 0:02:26]} 9. h3 {[%clk 0:02:42]}  b6 {[%clk 0:02:22]} 10. Nh2 {[%clk 0:02:41]}  Bd6 {[%clk 0:02:12]} 11. f4 {[%clk 0:02:37]}  exf4 {[%clk 0:02:12]} 12. Nxf4 {[%clk 0:02:37]}  Qe7 {[%clk 0:02:10]} 13. Qf3 {[%clk 0:02:34]}  c5 {[%clk 0:01:53]} 14. a4 {[%clk 0:02:27]}  Bxf4 {[%clk 0:01:38]} 15. Bxf4 {[%clk 0:02:27]}  Be6 {[%clk 0:01:39]} 16. a5 {[%clk 0:02:19]}  Nd7 {[%clk 0:01:31]} 17. Bxc7 {[%clk 0:02:12]}  Rec8 {[%clk 0:01:23]} 18. Bf4 {[%clk 0:02:09]}  Nf8 {[%clk 0:01:17]} 19. Qg3 {[%clk 0:01:46]}  Kh8 {[%clk 0:01:15]} 20. Bd2 {[%clk 0:01:42]}  Ng6 {[%clk 0:01:14]} 21. Bc3 {[%clk 0:01:42]}  b5 {[%clk 0:01:12]} 22. b3 {[%clk 0:01:37]}  c4 {[%clk 0:01:09]} 23. bxc4 {[%clk 0:01:33]}  bxc4 {[%clk 0:01:09]} 24. d4 {[%clk 0:01:33]}  Bd7 {[%clk 0:01:06]} 25. Rae1 {[%clk 0:01:29]}  Kh7 {[%clk 0:01:03]} 26. Kh1 {[%clk 0:01:28]}  f6 {[%clk 0:01:01]} 27. Nf3 {[%clk 0:01:22]}  Qa3 {[%clk 0:00:56]} 28. e5 {[%clk 0:01:16]}  fxe5 {[%clk 0:00:37]} 29. Nxe5 {[%clk 0:01:11]}  Nxe5 {[%clk 0:00:36]} 30. Rxe5 {[%clk 0:01:05]}  Rf8 {[%clk 0:00:36]} 31. Rfe1 {[%clk 0:00:43]}  Rf7 {[%clk 0:00:37]} 32. d5 {[%clk 0:00:36]}  Qd6 {[%clk 0:00:34]} 33. Qe3 {[%clk 0:00:29]}  Bf5 {[%clk 0:00:24]} 34. Qd4 {[%clk 0:00:24]}  Rc8 {[%clk 0:00:21]} 35. a6 {[%clk 0:00:20]}  Qg6 {[%clk 0:00:12]} 36. Kh2 {[%clk 0:00:18]}  Bxc2 {[%clk 0:00:12]} 37. R5e3 {[%clk 0:00:17]}  Bd3 {[%clk 0:00:12]} 38. Rg3 {[%clk 0:00:17]}  Qf6 {[%clk 0:00:11]} 39. Qxf6 {[%clk 0:00:14]}  gxf6 {[%clk 0:00:12]} 40. d6 {[%clk 0:00:09]}  Rd8 {[%clk 0:00:12]} 41. Re7 {[%clk 0:00:09]}  Rd7 {[%clk 0:00:12]} 42. Rxf7+ {[%clk 0:00:07]}  Rxf7 {[%clk 0:00:12]} 43. Re3 {[%clk 0:00:07]}  Kg6 {[%clk 0:00:09]} 44. Re7 {[%clk 0:00:06]}  Rxe7 {[%clk 0:00:10]} 45. dxe7 {[%clk 0:00:06]}  Kf7 {[%clk 0:00:11]} 46. Bb4 {[%clk 0:00:06]}  Bf5 {[%clk 0:00:06]} 47. Kg3 {[%clk 0:00:06]}  Bc8 {[%clk 0:00:07]} 48. Kf4 {[%clk 0:00:05]}  Bxa6 {[%clk 0:00:07]} 49. Ke3 {[%clk 0:00:05]}  Bb5 {[%clk 0:00:07]} 50. Kd4 {[%clk 0:00:05]}  Ke6 {[%clk 0:00:07]} 51. Kc5 {[%clk 0:00:05]}  Be8 {[%clk 0:00:07]} 52. Kd4 {[%clk 0:00:05]}  a5 {[%clk 0:00:07]} 53. Ba3 {[%clk 0:00:05]}  Bb5 {[%clk 0:00:07]} 54. Kc5 {[%clk 0:00:05]}  Ba4 {[%clk 0:00:07]} 55. Kxc4 {[%clk 0:00:05]}  Kd7 {[%clk 0:00:06]} 56. Kd4 {[%clk 0:00:05]}  Bc6 {[%clk 0:00:04]} 57. g4 {[%clk 0:00:05]}  Bg2 {[%clk 0:00:05]} 58. h4 {[%clk 0:00:05]}  Bh3 {[%clk 0:00:05]} 59. g5 {[%clk 0:00:03]}  fxg5 {[%clk 0:00:06]} 60. hxg5 {[%clk 0:00:04]}  hxg5 {[%clk 0:00:07]} 61. Ke5 {[%clk 0:00:04]}  Ke8 {[%clk 0:00:06]} 62. Ke4 {[%clk 0:00:04]}  Bf1 {[%clk 0:00:05]} 63. Kf3 {[%clk 0:00:04]}  Bb5 {[%clk 0:00:03]} 64. Kg4 {[%clk 0:00:04]}  Kf7 {[%clk 0:00:04]} 65. Kxg5 {[%clk 0:00:04]}  Be8 {[%clk 0:00:05]} 66. Kf4 {[%clk 0:00:05]}  Bd7 {[%clk 0:00:05]} 67. Ke5 {[%clk 0:00:05]}  Be8 {[%clk 0:00:06]} 68. Kd6 {[%clk 0:00:05]}  a4 {[%clk 0:00:06]} 69. Kc5 {[%clk 0:00:06]}  Ke6 {[%clk 0:00:07]} 70. Kb6 {[%clk 0:00:06]}  Kd7 {[%clk 0:00:08]} 71. Ka5 {[%clk 0:00:07]}  Bf7 {[%clk 0:00:08]} 72. Kb4 {[%clk 0:00:07]}  Be8 {[%clk 0:00:09]} 73. Kxa4 {[%clk 0:00:05]}  Bf7 {[%clk 0:00:10]} 74. Ka5 {[%clk 0:00:05]}  Be8 {[%clk 0:00:11]} 75. Kb6 {[%clk 0:00:05]}  Bf7 {[%clk 0:00:12]} 76. Bb4 {[%clk 0:00:06]}  Be8 {[%clk 0:00:13]} 77. Bc5 {[%clk 0:00:06]}  Ke6 {[%clk 0:00:14]} 78. Bb4 {[%clk 0:00:07]}  Kd7 {[%clk 0:00:15]} 79. Bc5 {[%clk 0:00:07]}  Bf7 {[%clk 0:00:15]} 80. Bb4 {[%clk 0:00:08]}  Be8 {[%clk 0:00:16]} 1/2-1/2


[Site "https://www.chess.com"]

[Event "Titled Tuesday Blitz May 23 Early 2023"]
[White "Brueckner, Thomas"]
[Black "Vargas Rodriguez, Wilver"]
[WhiteFideId "4600452"]
[BlackFideId "3509672"]
[WhiteElo "2322"]
[BlackElo "2246"]
[Result "1/2-1/2"]
[Round "09"]
[TimeControl "180+2"]
[Date "2023.05.23"]
[WhiteClock "0:00:28"]
[BlackClock "0:00:12"]

1. e4 {[%clk 0:03:00]}  c5 {[%clk 0:02:59]} 2. Nf3 {[%clk 0:03:00]}  Nc6 {[%clk 0:02:59]} 3. d4 {[%clk 0:03:00]}  cxd4 {[%clk 0:02:59]} 4. Nxd4 {[%clk 0:03:00]}  Nf6 {[%clk 0:03:00]} 5. Nc3 {[%clk 0:03:00]}  e5 {[%clk 0:02:59]} 6. Ndb5 {[%clk 0:03:00]}  d6 {[%clk 0:03:00]} 7. Bg5 {[%clk 0:02:59]}  a6 {[%clk 0:03:00]} 8. Na3 {[%clk 0:02:59]}  b5 {[%clk 0:03:01]} 9. Bxf6 {[%clk 0:02:57]}  gxf6 {[%clk 0:02:56]} 10. Nd5 {[%clk 0:02:57]}  f5 {[%clk 0:02:55]} 11. g3 {[%clk 0:02:56]}  fxe4 {[%clk 0:02:53]} 12. Bg2 {[%clk 0:02:56]}  Bf5 {[%clk 0:02:38]} 13. c3 {[%clk 0:02:54]}  Bg7 {[%clk 0:02:26]} 14. Nc2 {[%clk 0:02:52]}  O-O {[%clk 0:02:25]} 15. g4 {[%clk 0:02:47]}  Bg6 {[%clk 0:02:23]} 16. h4 {[%clk 0:02:47]}  h6 {[%clk 0:02:13]} 17. Nce3 {[%clk 0:02:45]}  Ne7 {[%clk 0:01:56]} 18. Nxe7+ {[%clk 0:02:06]}  Qxe7 {[%clk 0:01:54]} 19. Nf5 {[%clk 0:01:57]}  Bxf5 {[%clk 0:01:52]} 20. gxf5 {[%clk 0:01:58]}  Qd7 {[%clk 0:00:52]} 21. Bxe4 {[%clk 0:01:49]}  d5 {[%clk 0:00:52]} 22. Qxd5 {[%clk 0:01:48]}  Qxd5 {[%clk 0:00:52]} 23. Bxd5 {[%clk 0:01:49]}  Rad8 {[%clk 0:00:52]} 24. O-O-O {[%clk 0:01:42]}  Kh7 {[%clk 0:00:48]} 25. Rhg1 {[%clk 0:01:34]}  Bf6 {[%clk 0:00:47]} 26. h5 {[%clk 0:01:34]}  Bg5+ {[%clk 0:00:47]} 27. Kc2 {[%clk 0:01:34]}  f6 {[%clk 0:00:47]} 28. Bb7 {[%clk 0:01:25]}  a5 {[%clk 0:00:35]} 29. Ba6 {[%clk 0:01:05]}  b4 {[%clk 0:00:35]} 30. Rxd8 {[%clk 0:01:02]}  Rxd8 {[%clk 0:00:35]} 31. Rd1 {[%clk 0:01:01]}  Rxd1 {[%clk 0:00:20]} 32. Kxd1 {[%clk 0:01:02]}  bxc3 {[%clk 0:00:17]} 33. bxc3 {[%clk 0:01:03]}  Kg7 {[%clk 0:00:16]} 34. Kc2 {[%clk 0:01:00]}  Kf8 {[%clk 0:00:15]} 35. Kd3 {[%clk 0:00:59]}  Ke7 {[%clk 0:00:14]} 36. Kc4 {[%clk 0:00:59]}  Bd2 {[%clk 0:00:14]} 37. Kd3 {[%clk 0:00:59]}  Be1 {[%clk 0:00:12]} 38. f3 {[%clk 0:00:59]}  Kd6 {[%clk 0:00:12]} 39. Kc4 {[%clk 0:00:57]}  Kc6 {[%clk 0:00:11]} 40. Bb5+ {[%clk 0:00:56]}  Kb6 {[%clk 0:00:09]} 41. a4 {[%clk 0:00:56]}  Kc7 {[%clk 0:00:08]} 42. Be8 {[%clk 0:00:55]}  Kd6 {[%clk 0:00:07]} 43. Kd3 {[%clk 0:00:53]}  Bg3 {[%clk 0:00:06]} 44. Kc4 {[%clk 0:00:52]}  Be1 {[%clk 0:00:06]} 45. Kd3 {[%clk 0:00:50]}  Bg3 {[%clk 0:00:06]} 46. Bb5 {[%clk 0:00:49]}  Be1 {[%clk 0:00:06]} 47. Kc2 {[%clk 0:00:45]}  Kc5 {[%clk 0:00:06]} 48. Kd3 {[%clk 0:00:41]}  Bg3 {[%clk 0:00:05]} 49. Bc4 {[%clk 0:00:39]}  Be1 {[%clk 0:00:05]} 50. Bf7 {[%clk 0:00:37]}  Bg3 {[%clk 0:00:05]} 51. Ke4 {[%clk 0:00:31]}  Be1 {[%clk 0:00:05]} 52. Kd3 {[%clk 0:00:28]}  Bg3 {[%clk 0:00:05]} 53. Be8 {[%clk 0:00:28]}  Be1 {[%clk 0:00:05]} 54. Bb5 {[%clk 0:00:28]}  Bg3 {[%clk 0:00:04]} 55. Ke4 {[%clk 0:00:29]}  Be1 {[%clk 0:00:04]} 56. c4 {[%clk 0:00:29]}  Bg3 {[%clk 0:00:03]} 57. Ke3 {[%clk 0:00:28]}  Bf4+ {[%clk 0:00:03]} 58. Kf2 {[%clk 0:00:27]}  Bg5 {[%clk 0:00:04]} 59. Kg3 {[%clk 0:00:27]}  Bf4+ {[%clk 0:00:04]} 60. Kg4 {[%clk 0:00:27]}  Bg5 {[%clk 0:00:05]} 61. Kh3 {[%clk 0:00:27]}  Bf4 {[%clk 0:00:06]} 62. Kg2 {[%clk 0:00:28]}  Bg5 {[%clk 0:00:07]} 63. Kf2 {[%clk 0:00:28]}  Bf4 {[%clk 0:00:08]} 64. Ke2 {[%clk 0:00:28]}  Bg5 {[%clk 0:00:09]} 65. Kd3 {[%clk 0:00:29]}  Bf4 {[%clk 0:00:10]} 66. Ke4 {[%clk 0:00:29]}  Bg5 {[%clk 0:00:11]} 67. Kd3 {[%clk 0:00:28]}  Bf4 {[%clk 0:00:11]} 68. Kc3 {[%clk 0:00:28]}  Bg5 {[%clk 0:00:12]} 69. Kd3 {[%clk 0:00:28]} 1/2-1/2


[Site "https://www.chess.com"]

[Event "Titled Tuesday Blitz May 23 Early 2023"]
[White "Blackwhite017"]
[Black "Fiedorek, Michal"]
[BlackFideId "1199528"]
[WhiteElo "2100"]
[BlackElo "2135"]
[Result "0-1"]
[Round "09"]
[TimeControl "180+2"]
[Date "2023.05.23"]
[WhiteClock "0:00:04"]
[BlackClock "0:00:02"]

1. e4 {[%clk 0:03:00]}  d5 {[%clk 0:02:59]} 2. exd5 {[%clk 0:02:59]}  Qxd5 {[%clk 0:02:59]} 3. Nc3 {[%clk 0:02:49]}  Qd6 {[%clk 0:02:59]} 4. Nb5 {[%clk 0:02:48]}  Qb6 {[%clk 0:02:55]} 5. Nf3 {[%clk 0:02:30]}  c6 {[%clk 0:02:55]} 6. Nc3 {[%clk 0:02:28]}  Nf6 {[%clk 0:02:55]} 7. h3 {[%clk 0:02:24]}  Bf5 {[%clk 0:02:54]} 8. Bc4 {[%clk 0:02:21]}  e6 {[%clk 0:02:53]} 9. d3 {[%clk 0:02:14]}  Bd6 {[%clk 0:02:51]} 10. Bb3 {[%clk 0:01:57]}  Nbd7 {[%clk 0:02:50]} 11. Be3 {[%clk 0:01:54]}  Qc7 {[%clk 0:02:49]} 12. Qd2 {[%clk 0:01:34]}  O-O-O {[%clk 0:02:21]} 13. Nd4 {[%clk 0:01:14]}  Bg6 {[%clk 0:02:21]} 14. Ndb5 {[%clk 0:01:09]}  cxb5 {[%clk 0:01:00]} 15. Nxb5 {[%clk 0:01:05]}  Nd5 {[%clk 0:00:57]} 16. Nxc7 {[%clk 0:01:02]}  Bxc7 {[%clk 0:00:54]} 17. Bxd5 {[%clk 0:00:58]}  exd5 {[%clk 0:00:54]} 18. O-O {[%clk 0:00:51]}  Kb8 {[%clk 0:00:52]} 19. Bf4 {[%clk 0:00:49]}  Rhe8 {[%clk 0:00:35]} 20. Bxc7+ {[%clk 0:00:48]}  Kxc7 {[%clk 0:00:34]} 21. Rfe1 {[%clk 0:00:47]}  f6 {[%clk 0:00:31]} 22. Qa5+ {[%clk 0:00:42]}  Kb8 {[%clk 0:00:30]} 23. Qxd5 {[%clk 0:00:35]}  Ne5 {[%clk 0:00:26]} 24. Qb5 {[%clk 0:00:26]}  a6 {[%clk 0:00:24]} 25. Qa4 {[%clk 0:00:22]}  Ka7 {[%clk 0:00:21]} 26. Re3 {[%clk 0:00:18]}  b5 {[%clk 0:00:20]} 27. Qb3 {[%clk 0:00:18]}  Rc8 {[%clk 0:00:19]} 28. Rae1 {[%clk 0:00:17]}  Red8 {[%clk 0:00:14]} 29. f4 {[%clk 0:00:17]}  Nc6 {[%clk 0:00:14]} 30. c3 {[%clk 0:00:15]}  Rd7 {[%clk 0:00:13]} 31. d4 {[%clk 0:00:15]}  Rcc7 {[%clk 0:00:12]} 32. g4 {[%clk 0:00:16]}  Na5 {[%clk 0:00:12]} 33. Qd1 {[%clk 0:00:15]}  Nc4 {[%clk 0:00:12]} 34. R3e2 {[%clk 0:00:13]}  Bf7 {[%clk 0:00:12]} 35. f5 {[%clk 0:00:13]}  h5 {[%clk 0:00:12]} 36. b3 {[%clk 0:00:13]}  Nd6 {[%clk 0:00:12]} 37. c4 {[%clk 0:00:12]}  bxc4 {[%clk 0:00:11]} 38. bxc4 {[%clk 0:00:12]}  Nxc4 {[%clk 0:00:11]} 39. Rc2 {[%clk 0:00:10]}  hxg4 {[%clk 0:00:10]} 40. hxg4 {[%clk 0:00:09]}  Rb7 {[%clk 0:00:09]} 41. Qc1 {[%clk 0:00:08]}  Nd6 {[%clk 0:00:08]} 42. Rc5 {[%clk 0:00:08]}  g6 {[%clk 0:00:08]} 43. fxg6 {[%clk 0:00:08]}  Bxg6 {[%clk 0:00:08]} 44. g5 {[%clk 0:00:08]}  fxg5 {[%clk 0:00:08]} 45. Rxg5 {[%clk 0:00:08]}  Bd3 {[%clk 0:00:06]} 46. Rc5 {[%clk 0:00:09]}  Bb5 {[%clk 0:00:05]} 47. Re6 {[%clk 0:00:09]}  Rg7+ {[%clk 0:00:05]} 48. Kf2 {[%clk 0:00:09]}  Rbf7+ {[%clk 0:00:05]} 49. Ke1 {[%clk 0:00:09]}  Nb7 {[%clk 0:00:04]} 50. Qc3 {[%clk 0:00:08]}  Rf1+ {[%clk 0:00:03]} 51. Kd2 {[%clk 0:00:07]}  Rg2+ {[%clk 0:00:02]} 52. Re2 {[%clk 0:00:04]}  Rxe2# {[%clk 0:00:02]} 0-1


[Site "https://www.chess.com"]

[Event "Titled Tuesday Blitz May 23 Early 2023"]
[White "Coelho, Ramyres Santana"]
[Black "Petrova, Irina"]
[WhiteFideId "2120690"]
[BlackFideId "14124122"]
[WhiteElo "1888"]
[BlackElo "2084"]
[Result "0-1"]
[Round "09"]
[TimeControl "180+2"]
[Date "2023.05.23"]
[WhiteClock "0:01:01"]
[BlackClock "0:02:00"]

1. e4 {[%clk 0:02:38]}  d6 {[%clk 0:03:00]} 2. d4 {[%clk 0:02:38]}  Nf6 {[%clk 0:03:01]} 3. Nc3 {[%clk 0:02:37]}  e5 {[%clk 0:03:01]} 4. dxe5 {[%clk 0:02:36]}  dxe5 {[%clk 0:03:02]} 5. Qxd8+ {[%clk 0:02:36]}  Kxd8 {[%clk 0:03:03]} 6. Bc4 {[%clk 0:02:35]}  Ke8 {[%clk 0:03:03]} 7. Bg5 {[%clk 0:02:34]}  Bb4 {[%clk 0:02:53]} 8. Bxf6 {[%clk 0:02:30]}  gxf6 {[%clk 0:02:54]} 9. O-O-O {[%clk 0:02:27]}  Bxc3 {[%clk 0:02:50]} 10. bxc3 {[%clk 0:02:28]}  Be6 {[%clk 0:02:48]} 11. Bxe6 {[%clk 0:02:27]}  fxe6 {[%clk 0:02:49]} 12. Ne2 {[%clk 0:02:27]}  Nd7 {[%clk 0:02:46]} 13. f4 {[%clk 0:02:25]}  Ke7 {[%clk 0:02:46]} 14. Rd3 {[%clk 0:02:23]}  exf4 {[%clk 0:02:46]} 15. Nxf4 {[%clk 0:02:22]}  Ne5 {[%clk 0:02:46]} 16. Rd2 {[%clk 0:02:18]}  Rhg8 {[%clk 0:02:39]} 17. g3 {[%clk 0:02:16]}  Rgd8 {[%clk 0:02:26]} 18. Rhd1 {[%clk 0:02:11]}  Rxd2 {[%clk 0:02:25]} 19. Rxd2 {[%clk 0:02:11]}  a5 {[%clk 0:02:24]} 20. Nd3 {[%clk 0:02:09]}  Nc4 {[%clk 0:02:20]} 21. Rf2 {[%clk 0:02:04]}  b6 {[%clk 0:02:19]} 22. Nb2 {[%clk 0:02:03]}  Ne5 {[%clk 0:02:17]} 23. Nd3 {[%clk 0:02:01]}  Nc4 {[%clk 0:02:13]} 24. Nb2 {[%clk 0:02:00]}  Nxb2 {[%clk 0:02:12]} 25. Kxb2 {[%clk 0:02:00]}  Rd8 {[%clk 0:02:11]} 26. Kc1 {[%clk 0:01:56]}  e5 {[%clk 0:02:12]} 27. Kb2 {[%clk 0:01:45]}  Ke6 {[%clk 0:02:12]} 28. Kb3 {[%clk 0:01:44]}  Rd1 {[%clk 0:02:12]} 29. Kc4 {[%clk 0:01:37]}  Ra1 {[%clk 0:02:06]} 30. Kb3 {[%clk 0:01:37]}  Re1 {[%clk 0:02:05]} 31. Rf5 {[%clk 0:01:29]}  Kf7 {[%clk 0:02:02]} 32. g4 {[%clk 0:01:19]}  Rxe4 {[%clk 0:02:00]} 33. g5 {[%clk 0:01:19]}  Rf4 {[%clk 0:01:58]} 34. Rxf6+ {[%clk 0:01:08]}  Rxf6 {[%clk 0:01:58]} 35. gxf6 {[%clk 0:01:09]}  Kxf6 {[%clk 0:01:59]} 36. Kc4 {[%clk 0:01:09]}  Kf5 {[%clk 0:01:59]} 37. Kd5 {[%clk 0:01:07]}  e4 {[%clk 0:01:58]} 38. Kc6 {[%clk 0:01:05]}  e3 {[%clk 0:01:58]} 39. Kxc7 {[%clk 0:01:06]}  e2 {[%clk 0:01:58]} 40. Kxb6 {[%clk 0:01:07]}  e1=Q {[%clk 0:01:58]} 41. c4 {[%clk 0:01:07]}  Qb4+ {[%clk 0:01:58]} 42. Ka6 {[%clk 0:01:06]}  Qxc4+ {[%clk 0:01:57]} 43. Kxa5 {[%clk 0:01:05]}  Qxa2+ {[%clk 0:01:57]} 44. Kb4 {[%clk 0:01:05]}  Qxc2 {[%clk 0:01:58]} 45. Ka3 {[%clk 0:01:05]}  Qb1 {[%clk 0:01:57]} 46. h4 {[%clk 0:01:03]}  Ke5 {[%clk 0:01:58]} 47. h5 {[%clk 0:01:03]}  Kd5 {[%clk 0:01:59]} 48. h6 {[%clk 0:01:03]}  Kc4 {[%clk 0:01:59]} 49. Ka4 {[%clk 0:01:01]}  Qb4# {[%clk 0:02:00]} 0-1


[Site "https://www.chess.com"]

[Event "Titled Tuesday Blitz May 23 Early 2023"]
[White "Floresvillar Gonzalez, Luis Migu"]
[Black "Travadon, Loic"]
[WhiteFideId "5100542"]
[BlackFideId "26092131"]
[WhiteElo "2040"]
[BlackElo "2405"]
[Result "1-0"]
[Round "09"]
[TimeControl "180+2"]
[Date "2023.05.23"]
[WhiteClock "0:01:31"]
[BlackClock "0:00:00"]

1. e4 {[%clk 0:02:47]}  e5 {[%clk 0:02:51]} 2. Nf3 {[%clk 0:02:47]}  Nc6 {[%clk 0:02:49]} 3. d4 {[%clk 0:02:47]}  exd4 {[%clk 0:02:49]} 4. Bc4 {[%clk 0:02:47]}  Nf6 {[%clk 0:02:47]} 5. e5 {[%clk 0:02:47]}  d5 {[%clk 0:02:46]} 6. Bb5 {[%clk 0:02:47]}  Ne4 {[%clk 0:02:45]} 7. Nxd4 {[%clk 0:02:48]}  Bd7 {[%clk 0:02:44]} 8. Bxc6 {[%clk 0:02:46]}  bxc6 {[%clk 0:02:45]} 9. Be3 {[%clk 0:02:44]}  Bc5 {[%clk 0:02:44]} 10. O-O {[%clk 0:02:40]}  Bb6 {[%clk 0:02:44]} 11. Nd2 {[%clk 0:02:38]}  Nxd2 {[%clk 0:02:43]} 12. Qxd2 {[%clk 0:02:37]}  c5 {[%clk 0:02:44]} 13. Nf3 {[%clk 0:02:32]}  d4 {[%clk 0:02:45]} 14. Bg5 {[%clk 0:02:30]}  Qb8 {[%clk 0:02:45]} 15. Rfe1 {[%clk 0:02:28]}  Qb7 {[%clk 0:02:44]} 16. c3 {[%clk 0:02:25]}  Qd5 {[%clk 0:02:43]} 17. cxd4 {[%clk 0:02:23]}  cxd4 {[%clk 0:02:44]} 18. Rad1 {[%clk 0:02:21]}  c5 {[%clk 0:02:44]} 19. b4 {[%clk 0:02:18]}  O-O {[%clk 0:02:42]} 20. bxc5 {[%clk 0:02:17]}  Bxc5 {[%clk 0:02:40]} 21. Nxd4 {[%clk 0:02:18]}  Ba4 {[%clk 0:02:39]} 22. Nf3 {[%clk 0:02:16]}  Qb7 {[%clk 0:02:26]} 23. Rb1 {[%clk 0:02:13]}  Qa6 {[%clk 0:02:24]} 24. Rbc1 {[%clk 0:02:05]}  Bb6 {[%clk 0:02:21]} 25. Qe2 {[%clk 0:02:00]}  Bb5 {[%clk 0:02:20]} 26. Qe4 {[%clk 0:01:57]}  Rfe8 {[%clk 0:02:18]} 27. Nd4 {[%clk 0:01:50]}  Bd3 {[%clk 0:02:17]} 28. Qg4 {[%clk 0:01:44]}  g6 {[%clk 0:02:05]} 29. Bf6 {[%clk 0:01:41]}  Rec8 {[%clk 0:01:44]} 30. Rxc8+ {[%clk 0:01:38]}  Rxc8 {[%clk 0:01:45]} 31. e6 {[%clk 0:01:36]}  fxe6 {[%clk 0:00:00]} 32. Qxe6+ {[%clk 0:01:31]} 1-0


[Site "https://www.chess.com"]